bitfinex/quotes_BTCUSD_20220307
["timestamp","ask_amount","ask_price","bid_price","bid_amount"]
[1646680725581,0.076328,38026.0,38025.0,0.000925]
[1646680725779,0.065797,38026.0,38025.0,0.000925]
[1646680726182,0.070797,38026.0,38025.0,0.000925]
[1646680727435,0.065797,38026.0,38025.0,0.000925]
[1646680729237,0.076329,38026.0,38025.0,0.000925]
[1646680729640,0.065797,38026.0,38025.0,0.000925]
[1646680730282,0.070797,38026.0,38025.0,0.000925]
[1646680731483,0.065797,38026.0,38025.0,0.000925]
[1646680732485,0.13178225,38027.0,38025.0,0.000925]
[1646680732486,0.00018625,38027.0,38025.0,0.000925]
[1646680732789,0.00018625,38027.0,38025.0,0.198266]
[1646680732982,0.00018625,38027.0,38025.0,0.248266]
[1646680733184,0.64587305,38035.0,38025.0,0.248266]
[1646680733388,0.54587305,38035.0,38030.0,0.23711196]
[1646680733584,0.00074488,38034.0,38030.0,0.43424811]
[1646680734034,0.065781,38032.0,38030.0,0.43424811]
[1646680734338,0.065781,38032.0,38030.0,0.065782]
[1646680734734,0.065781,38032.0,38029.0,0.181563]
[1646680735736,0.065781,38032.0,38029.0,0.05]
[1646680735934,0.0999,38030.0,38029.0,0.05]
[1646680736133,0.0999,38030.0,38025.0,0.000925]
[1646680736334,0.065797,38029.0,38025.0,0.066721]
[1646680736939,0.0999,38028.0,38025.0,0.066721]
[1646680737778,0.0999,38027.0,38025.0,0.066721]
[1646680739282,0.0999,38027.0,38025.0,0.000925]
[1646680739487,0.065801,38026.0,38025.0,0.000925]
[1646680740288,0.068801,38026.0,38025.0,0.000925]
[1646680740488,0.003,38026.0,38025.0,0.000925]
[1646680741287,0.013531,38026.0,38025.0,0.000925]
[1646680741542,0.003,38026.0,38025.0,0.000925]
[1646680742440,0.0001864,38027.0,38025.0,0.000925]
[1646680742841,0.131578,38031.0,38025.0,0.000925]
[1646680743041,0.00018641,38027.0,38025.0,0.06672]
[1646680743939,0.1,38032.0,38025.0,0.06672]
[1646680744340,0.005,38027.0,38025.0,0.06672]
[1646680744545,0.070792,38027.0,38025.0,0.06672]
[1646680745287,0.081322,38027.0,38025.0,0.06672]
[1646680745482,0.076322,38027.0,38025.0,0.06672]
[1646680745682,0.065792,38027.0,38025.0,0.06672]
[1646680746685,0.065792,38027.0,38025.0,0.06660038]
[1646680747490,0.128332,38026.0,38025.0,0.000925]
[1646680747689,0.531032,38026.0,38025.0,0.000925]
[1646680747887,0.065816,38023.0,38018.0,9.472e-05]
[1646680748088,0.128332,38021.0,38018.0,9.472e-05]
[1646680748287,0.0527,38020.0,38018.0,9.472e-05]
[1646680748690,0.09997305,38019.0,38011.0,0.39298741]
[1646680748932,0.0527,38018.0,38017.0,9.472e-05]
[1646680749131,0.184329,38018.0,38017.0,0.06591172]
[1646680749832,0.0527,38018.0,38017.0,0.06591172]
[1646680750033,0.0527,38018.0,38017.0,0.065817]
[1646680751035,0.1527,38018.0,38017.0,0.065817]
[1646680751435,0.0527,38018.0,38017.0,0.065817]
[1646680752038,0.1527,38018.0,38017.0,0.065817]
[1646680752240,0.1577,38018.0,38017.0,0.065817]
[1646680752694,0.0577,38018.0,38017.0,0.065817]
[1646680753093,0.068233,38018.0,38017.0,0.065817]
[1646680753292,0.0577,38018.0,38017.0,0.065817]
[1646680753494,0.065813,38019.0,38017.0,0.065817]
[1646680753893,0.06524167,38019.0,38017.0,0.065817]
[1646680754094,0.1,38022.0,38018.0,0.20854083]
[1646680754298,0.18178238,38026.0,38021.0,0.16336201]
[1646680754299,0.00018638,38026.0,38021.0,0.16336201]
[1646680754695,0.00018638,38026.0,38021.0,0.21336201]
[1646680754896,0.8329046,38031.0,38021.0,0.21336201]
[1646680755095,0.00015819,38026.0,38023.0,0.28089904]
[1646680755393,0.00015819,38026.0,38025.0,0.17431041]
[1646680755893,0.065785,38030.0,38025.0,0.22431041]
[1646680756094,0.065785,38030.0,38026.0,0.065785]
[1646680756294,0.00015819,38027.0,38025.0,0.62854974]
[1646680756537,0.06594919,38027.0,38025.0,0.62854974]
[1646680757232,0.065791,38027.0,38025.0,0.62854974]
[1646680758335,0.070791,38027.0,38025.0,0.62854974]
[1646680759533,0.065791,38027.0,38025.0,0.62854974]
[1646680760388,0.069791,38027.0,38025.0,0.62854974]
[1646680760784,0.131582,38031.0,38027.0,1.65]
[1646680760989,0.09997305,38036.0,38028.0,0.3]
[1646680761187,0.0022,38039.0,38029.0,0.587625]
[1646680761387,0.0022,38039.0,38030.0,0.3]
[1646680761586,0.0022,38039.0,38031.0,0.02629]
[1646680761787,0.0022,38039.0,38032.0,0.36460343]
[1646680761985,0.0022,38039.0,38032.0,0.71460343]
[1646680762186,0.0022,38039.0,38032.0,0.28188803]
[1646680762586,0.0022,38039.0,38032.0,0.58188803]
[1646680762789,0.0022,38039.0,38032.0,0.28188803]
[1646680763390,0.00018918,38037.0,38032.0,0.115766]
[1646680764440,0.00018918,38037.0,38032.0,0.065766]
[1646680764441,0.065778,38036.0,38032.0,0.065766]
[1646680764640,0.06596718,38036.0,38032.0,0.065766]
[1646680764842,0.2963947,38033.0,38026.0,0.304288]
[1646680765039,0.2963947,38033.0,38026.0,0.131588]
[1646680765239,0.228332,38033.0,38026.0,0.131588]
[1646680765444,0.065797,38031.0,38026.0,0.131588]
[1646680765839,0.0659826,38031.0,38026.0,0.131588]
[1646680766040,0.0001856,38031.0,38026.0,0.131588]
[1646680766639,0.0659716,38031.0,38026.0,0.131588]
[1646680766940,0.065786,38031.0,38026.0,0.181588]
[1646680767139,0.0001856,38030.0,38026.0,0.181588]
[1646680767988,0.15,38035.0,38026.0,0.181588]
[1646680768185,0.0001579,38030.0,38026.0,0.181588]
[1646680768385,0.0106869,38030.0,38026.0,0.181588]
[1646680768786,0.0001579,38030.0,38026.0,0.181588]
[1646680769188,0.065784,38031.0,38026.0,0.181588]
[1646680769387,0.00018662,38030.0,38026.0,0.181588]
[1646680769987,0.00018662,38030.0,38028.0,0.00096034]
[1646680770389,0.060784,38031.0,38028.0,0.00096034]
[1646680770693,0.00018662,38030.0,38028.0,0.00096034]
[1646680771536,0.060784,38031.0,38028.0,0.00096034]
[1646680771936,0.06097061,38031.0,38028.0,0.00096034]
[1646680772539,0.07150061,38031.0,38028.0,0.00096034]
[1646680772838,0.060784,38031.0,38028.0,0.00096034]
[1646680773139,0.06097039,38031.0,38028.0,0.00096034]
[1646680773540,0.00018639,38031.0,38028.0,0.00096034]
[1646680774036,0.065779,38034.0,38028.0,0.00096034]
[1646680774237,0.00018639,38031.0,38029.0,0.1998]
[1646680774737,0.00018639,38031.0,38030.0,0.05]
[1646680775217,0.14997305,38036.0,38030.0,0.05]
[1646680775418,0.00018638,38032.0,38031.0,0.06578]
[1646680776420,0.010529,38033.0,38031.0,0.06578]
[1646680776619,0.01071544,38033.0,38031.0,0.06578]
[1646680776819,0.00018644,38033.0,38031.0,0.06578]
[1646680777618,0.065779,38034.0,38031.0,0.06578]
[1646680777819,0.06596544,38034.0,38031.0,0.06578]
[1646680778628,0.19429744,38034.0,38031.0,0.06578]
[1646680778824,0.19429744,38034.0,38030.0,0.18156]
[1646680778825,0.1027,38033.0,38030.0,0.18156]
[1646680779238,0.1,38032.0,38031.0,0.00216661]
[1646680779435,0.1027,38032.0,38031.0,0.00216661]
[1646680779635,0.16849842,38032.0,38031.0,0.00216661]
[1646680779835,0.40009742,38032.0,38031.0,0.00216661]
[1646680780636,0.49999742,38032.0,38031.0,0.00216661]
[1646680781243,0.334299,38032.0,38031.0,0.00216661]
[1646680781439,0.234299,38032.0,38031.0,0.00216661]
[1646680781639,0.1027,38032.0,38031.0,0.00216661]
[1646680782038,0.0527,38032.0,38031.0,0.21076658]
[1646680782437,0.0527,38032.0,38031.0,0.00216661]
[1646680783487,0.0527,38032.0,38031.0,0.17449445]
[1646680784083,0.063228,38032.0,38031.0,0.17449445]
[1646680784484,0.063228,38032.0,38031.0,0.00216661]
[1646680785586,0.0527,38032.0,38031.0,0.00216661]
[1646680786188,0.13358956,38036.0,38031.0,0.30216661]
[1646680786445,0.00018643,38033.0,38031.0,0.30216661]
[1646680786837,0.00018643,38033.0,38031.0,0.50196661]
[1646680787039,0.00018643,38033.0,38032.0,0.3]
[1646680787239,0.00294559,38039.0,38032.0,0.57841875]
[1646680787240,0.0022,38039.0,38032.0,0.57841875]
[1646680787538,0.00018643,38034.0,38033.0,0.131543]
[1646680788338,0.010527,38035.0,38033.0,0.131543]
[1646680788738,0.01071342,38035.0,38033.0,0.131543]
[1646680788938,0.07649342,38035.0,38033.0,0.131543]
[1646680789438,0.07649342,38035.0,38033.0,0.331343]
[1646680789638,0.0022,38039.0,38033.0,0.331343]
[1646680789837,0.00018642,38036.0,38033.0,0.331343]
[1646680790290,0.06596342,38036.0,38033.0,0.331343]
[1646680790888,0.065777,38036.0,38033.0,0.331343]
[1646680791089,0.06596342,38036.0,38033.0,0.331343]
[1646680792091,0.076304,38036.0,38033.0,0.331343]
[1646680792296,0.07649042,38036.0,38033.0,0.131543]
[1646680792493,0.06596342,38036.0,38035.0,0.23897508]
[1646680792696,0.00018642,38036.0,38035.0,0.23897508]
[1646680792893,0.00018642,38036.0,38035.0,0.53897508]
[1646680793092,0.00018642,38036.0,38034.0,0.065771]
[1646680793292,0.0022,38039.0,38035.0,0.20606258]
[1646680793492,0.0022,38039.0,38035.0,0.50606258]
[1646680793695,0.00018642,38037.0,38035.0,0.20606258]
[1646680793939,0.06596142,38037.0,38034.0,0.065771]
[1646680794138,0.06596142,38037.0,38034.0,0.06568122]
[1646680794345,0.04047503,38051.0,38035.0,0.6]
[1646680794639,0.0527,38048.0,38038.0,0.065776]
[1646680794840,0.0001,38041.0,38038.0,0.065776]
[1646680795040,0.131549,38041.0,38038.0,0.065776]
[1646680795439,0.231549,38041.0,38038.0,0.065776]
[1646680795838,0.242077,38041.0,38038.0,0.065776]
[1646680796242,0.065775,38040.0,38038.0,0.065776]
[1646680796441,0.065775,38040.0,38036.0,0.065782]
[1646680796642,0.165775,38040.0,38036.0,0.065782]
[1646680796845,0.218475,38040.0,38036.0,0.065782]
[1646680798289,0.218475,38040.0,38036.0,0.06590165]
[1646680799292,0.1527,38040.0,38039.0,0.00143926]
[1646680799692,0.2526,38040.0,38039.0,0.00143926]
[1646680799891,0.263128,38040.0,38039.0,0.00143926]
[1646680800298,0.263128,38040.0,38036.0,0.06590165]
[1646680800299,0.2526,38040.0,38036.0,0.00011965]
[1646680800497,0.19738827,38038.0,38025.0,0.723739]
[1646680800697,0.634299,38037.0,38036.0,0.00011965]
[1646680800895,1.05,38036.0,38025.0,0.723739]
[1646680801093,0.3527,38035.0,38025.0,0.723739]
[1646680801296,0.3527,38035.0,38021.0,0.294808]
[1646680801297,0.1,38030.0,38021.0,0.294808]
[1646680801541,0.1,38028.0,38021.0,0.131608]
[1646680801744,0.0527,38027.0,38021.0,0.131608]
[1646680801939,0.0527,38027.0,38026.0,0.1998]
[1646680802641,0.0527,38027.0,38026.0,0.61715494]
[1646680803742,0.06323,38027.0,38026.0,0.61715494]
[1646680803942,0.1,38037.0,38026.0,0.79344494]
[1646680804141,0.1,38037.0,38036.0,0.20650574]
[1646680804342,0.3,38043.0,38037.0,0.79780913]
[1646680804343,0.1,38043.0,38037.0,0.79780913]
[1646680804743,0.1,38043.0,38037.0,0.84780913]
[1646680805183,0.065776,38042.0,38037.0,0.84780913]
[1646680805391,0.15,38043.0,38037.0,0.91358213]
[1646680805392,0.1,38041.0,38037.0,0.91358213]
[1646680805586,0.1,38040.0,38037.0,0.91358213]
[1646680805988,0.0999,38039.0,38037.0,0.91358213]
[1646680807788,0.1,38038.0,38037.0,0.91358213]
[1646680807987,0.15,38038.0,38037.0,0.84780913]
[1646680808589,0.25,38038.0,38037.0,0.84780913]
[1646680808790,0.15,38038.0,38037.0,0.84780913]
[1646680809244,0.25,38038.0,38037.0,0.84780913]
[1646680809547,0.49712,38038.0,38037.0,0.79780913]
[1646680809744,0.60352809,38038.0,38037.0,0.79780913]
[1646680809949,0.70352809,38038.0,38037.0,0.79780913]
[1646680810346,0.98419836,38038.0,38037.0,0.79780913]
[1646680810546,1.65,38037.0,38034.0,9.598e-05]
[1646680810750,0.7584,38035.0,38034.0,9.598e-05]
[1646680810948,1.34142162,38035.0,38034.0,9.598e-05]
[1646680811145,0.065818,38031.0,38016.0,0.3]
[1646680811348,0.0527,38030.0,38015.0,0.263159]
[1646680811549,0.1,38022.0,38016.0,0.19252274]
[1646680811751,0.065824,38020.0,38014.0,0.46687994]
[1646680811945,0.0527,38019.0,38014.0,0.16687994]
[1646680812146,0.0527,38019.0,38014.0,0.23270094]
[1646680812987,0.06582,38017.0,38014.0,0.23270094]
[1646680813187,0.0527,38016.0,38014.0,0.23270094]
[1646680814190,0.1526,38016.0,38014.0,0.23270094]
[1646680814492,0.1566,38016.0,38014.0,0.23270094]
[1646680815293,0.1566,38016.0,38015.0,0.21597415]
[1646680815294,0.0567,38016.0,38015.0,0.21597415]
[1646680815793,0.063233,38016.0,38015.0,0.36597415]
[1646680816092,0.0527,38016.0,38015.0,0.36597415]
[1646680816543,0.0527,38016.0,38015.0,0.15]
[1646680816744,0.0527,38016.0,38014.0,0.232799]
[1646680817443,0.0527,38016.0,38014.0,0.23270094]
[1646680817643,0.0527,38016.0,38013.0,0.19989712]
[1646680817840,0.0527,38016.0,38013.0,9.712e-05]
[1646680818042,0.0527,38016.0,38013.0,0.06592212]
[1646680818541,0.0557,38016.0,38013.0,0.065825]
[1646680818741,0.0999,38015.0,38013.0,0.06592212]
[1646680818942,0.0999,38015.0,38013.0,9.712e-05]
[1646680819146,0.065829,38014.0,38013.0,9.712e-05]
[1646680819343,0.218529,38014.0,38013.0,9.712e-05]
[1646680819743,0.218529,38014.0,38008.0,0.131655]
[1646680819943,0.218529,38014.0,38012.0,9.713e-05]
[1646680820199,0.118529,38014.0,38012.0,9.713e-05]
[1646680820392,0.1,38013.0,38012.0,9.713e-05]
[1646680820592,0.22478,38013.0,38012.0,9.713e-05]
[1646680820793,0.27478,38013.0,38011.0,0.065829]
[1646680820994,0.27478,38013.0,38011.0,0.06592658]
[1646680821192,0.1,38012.0,38011.0,0.06592658]
[1646680821694,0.1527,38012.0,38011.0,0.06592658]
[1646680822093,0.1527,38012.0,38011.0,0.065829]
[1646680822296,0.0527,38012.0,38011.0,0.065829]
[1646680822496,0.0527,38017.0,38011.0,0.065829]
[1646680822698,0.0527,38016.0,38014.0,0.24665241]
[1646680822896,0.0527,38015.0,38014.0,0.24665241]
[1646680823096,0.0527,38015.0,38014.0,0.45286891]
[1646680823294,0.0527,38015.0,38014.0,0.38705291]
[1646680823494,0.118517,38015.0,38014.0,0.38705291]
[1646680823694,0.168517,38015.0,38014.0,0.38705291]
[1646680823940,0.168517,38015.0,38014.0,0.18083641]
[1646680824537,0.172517,38015.0,38014.0,0.18083641]
[1646680825445,0.1067,38015.0,38014.0,0.18083641]
[1646680825644,0.0567,38015.0,38014.0,0.18083641]
[1646680825841,0.05,38018.0,38014.0,0.18083641]
[1646680826240,0.065806,38019.0,38014.0,0.18083641]
[1646680826440,0.065806,38019.0,38014.0,0.38063641]
[1646680826641,0.215706,38019.0,38015.0,0.065809]
[1646680827040,0.215706,38019.0,38015.0,0.06590623]
[1646680827890,0.226239,38019.0,38015.0,0.06590623]
[1646680828095,0.226239,38019.0,38015.0,0.065809]
[1646680828290,0.22571341,38019.0,38015.0,0.0659063]
[1646680828489,0.22971341,38019.0,38015.0,0.0659063]
[1646680829390,0.0999,38017.0,38015.0,0.065809]
[1646680829590,0.0999,38017.0,38015.0,0.0659063]
[1646680829791,0.1999,38017.0,38015.0,0.0659063]
[1646680830291,0.5026,38017.0,38015.0,0.0659063]
[1646680830589,0.5026,38017.0,38015.0,0.065809]
[1646680830590,0.5056,38017.0,38015.0,0.065809]
[1646680831090,0.1,38016.0,38015.0,0.065809]
[1646680831541,0.3056,38017.0,38015.0,0.065809]
[1646680831939,0.2026,38017.0,38015.0,0.065809]
[1646680832541,0.2026,38017.0,38016.0,0.21684679]
[1646680832741,0.1499,38017.0,38016.0,0.21684679]
[1646680833346,0.065809,38019.0,38016.0,0.62483603]
[1646680833543,0.010533,38019.0,38016.0,0.62483603]
[1646680833743,0.010533,38019.0,38017.0,0.431597]
[1646680833943,0.155095,38024.0,38019.0,0.03102508]
[1646680834143,0.0893,38024.0,38019.0,0.03102508]
[1646680834343,0.0893,38024.0,38023.0,0.1998]
[1646680834545,0.0893,38024.0,38023.0,0.4998]
[1646680834747,0.1,38030.0,38023.0,0.6498]
[1646680834946,0.16870793,38036.0,38023.0,0.63138]
[1646680834947,0.44048,38036.0,38023.0,0.63138]
[1646680835190,0.0527,38038.0,38027.0,0.15]
[1646680835191,0.1,38032.0,38027.0,0.15]
[1646680835397,0.1,38032.0,38023.0,0.63138]
[1646680835398,0.1,38033.0,38031.0,0.22278199]
[1646680835793,0.0892,38036.0,38031.0,0.22278199]
[1646680835998,0.0892,38036.0,38035.0,0.15]
[1646680836191,0.0892,38036.0,38035.0,0.45]
[1646680836593,0.1,38046.0,38035.0,0.15]
[1646680836793,0.131539,38043.0,38041.0,0.20018507]
[1646680836993,0.1317253,38043.0,38041.0,0.20018507]
[1646680837193,0.1317253,38043.0,38042.0,0.05]
[1646680837795,0.131539,38043.0,38042.0,0.05]
[1646680838005,0.06577351,38044.0,38042.0,0.05]
[1646680838006,0.00018632,38044.0,38042.0,0.5]
[1646680838195,0.00018632,38044.0,38043.0,0.3]
[1646680838596,0.00018632,38044.0,38042.0,0.331499]
[1646680839046,0.00018632,38044.0,38042.0,0.2]
[1646680839047,0.065764,38044.0,38042.0,0.2]
[1646680839250,0.065764,38044.0,38042.0,0.115772]
[1646680839646,0.1,38043.0,38042.0,0.115772]
[1646680839945,0.065764,38044.0,38042.0,0.115772]
[1646680840648,0.06590827,38044.0,38042.0,0.115772]
[1646680841045,0.06590827,38044.0,38042.0,0.265772]
[1646680841448,0.065764,38044.0,38042.0,0.265772]
[1646680842047,0.00014427,38045.0,38042.0,0.265772]
[1646680842249,0.00014427,38045.0,38042.0,0.115772]
[1646680842451,0.13167927,38045.0,38042.0,0.265772]
[1646680842691,0.1,38043.0,38042.0,0.115772]
[1646680843089,0.065763,38044.0,38042.0,0.115772]
[1646680843898,0.076289,38044.0,38039.0,0.131546]
[1646680844091,0.065763,38044.0,38036.0,0.131558]
[1646680844292,0.06578,38042.0,38036.0,0.131558]
[1646680844491,0.09958,38040.0,38036.0,0.131558]
[1646680844691,0.231139,38040.0,38036.0,0.131558]
[1646680844895,0.131559,38040.0,38036.0,0.131558]
[1646680845092,0.281539,38040.0,38036.0,0.131558]
[1646680845292,0.281539,38040.0,38036.0,0.181558]
[1646680845494,0.06578,38039.0,38036.0,0.181558]
[1646680845695,0.06578,38039.0,38037.0,0.15]
[1646680845894,0.06578,38039.0,38036.0,0.181558]
[1646680846296,0.09498,38042.0,38037.0,0.15]
[1646680846546,0.065768,38041.0,38037.0,0.215772]
[1646680847041,0.065768,38041.0,38037.0,0.21491892]
[1646680847241,0.065768,38041.0,38037.0,0.06322963]
[1646680847841,0.09998,38040.0,38037.0,0.06322963]
[1646680848243,0.14998,38040.0,38037.0,0.06322963]
[1646680848445,0.46139997,38040.0,38036.0,0.131558]
[1646680848643,0.15268,38039.0,38036.0,0.131558]
[1646680848845,0.165768,38038.0,38036.0,0.131558]
[1646680849146,0.0527,38037.0,38036.0,0.131558]
[1646680849744,0.1418,38037.0,38036.0,0.131558]
[1646680850194,0.1418,38037.0,38036.0,0.181558]
[1646680850791,0.1418,38037.0,38036.0,0.05]
[1646680851192,0.1418,38037.0,38034.0,0.05]
[1646680851193,0.1918,38037.0,38034.0,0.05]
[1646680851392,0.1918,38037.0,38033.0,0.1998]
[1646680851393,0.42339152,38037.0,38033.0,0.1998]
[1646680851591,0.1,38035.0,38033.0,0.1998]
[1646680851794,0.1,38035.0,38032.0,0.131684]
[1646680851795,0.0527,38034.0,38032.0,0.131684]
[1646680851991,0.25268,38034.0,38032.0,0.131684]
[1646680852195,0.25268,38034.0,38029.0,0.131591]
[1646680852394,0.19998,38033.0,38032.0,0.000109]
[1646680852592,0.2027,38033.0,38032.0,0.000109]
[1646680852792,0.1027,38033.0,38032.0,0.000109]
[1646680852991,0.25268,38033.0,38032.0,0.000109]
[1646680853191,0.34178,38033.0,38032.0,0.000109]
[1646680853397,0.065804,38032.0,38027.0,0.1998]
[1646680853597,0.250134,38031.0,38023.0,0.131606]
[1646680853794,0.06581264,38030.0,38019.0,0.05]
[1646680854047,0.09998,38025.0,38020.0,0.1998]
[1646680854349,0.0891,38021.0,38020.0,0.265617]
[1646680854545,0.1418,38021.0,38020.0,0.265617]
[1646680854749,0.2918,38021.0,38008.0,0.900212]
[1646680854948,0.2918,38021.0,38008.0,0.263212]
[1646680854949,0.23045637,38020.0,38008.0,0.263212]
[1646680855146,0.09998,38012.0,38004.0,0.01315]
[1646680855349,0.0527,38011.0,38004.0,0.21782805]
[1646680855546,0.0527,38011.0,38003.0,0.151]
[1646680855547,0.1,38008.0,38003.0,0.151]
[1646680855745,0.1,38008.0,38003.0,0.31142234]
[1646680855746,0.0527,38007.0,38003.0,0.31142234]
[1646680855946,0.0527,38007.0,38005.0,0.065842]
[1646680856746,0.0567,38007.0,38005.0,0.065842]
[1646680857147,0.18838372,38007.0,38003.0,0.001]
[1646680857350,0.165837,38006.0,38003.0,0.001]
[1646680857548,0.09998,38004.0,38003.0,0.001]
[1646680857794,0.15268,38004.0,38003.0,0.001]
[1646680858398,0.15268,38004.0,38002.0,0.00111771]
[1646680858601,0.15268,38004.0,38001.0,0.01]
[1646680858602,1.05,38003.0,37999.0,0.002]
[1646680858798,1.05,38003.0,37999.0,0.2019]
[1646680858799,0.218565,38002.0,37999.0,0.2019]
[1646680859000,0.36602411,38002.0,37999.0,0.2019]
[1646680859198,0.19998,38000.0,37999.0,0.2019]
[1646680859402,0.19998,38000.0,37989.0,0.132721]
[1646680859403,1.2,37998.0,37989.0,0.132721]
[1646680859605,0.28288123,37997.0,37988.0,0.001]
[1646680859801,0.28288123,37997.0,37974.0,0.15]
[1646680859802,0.01265744,37994.0,37974.0,0.15]
[1646680860002,0.01532795,37988.0,37972.0,0.05]
[1646680860202,0.01326073,37983.0,37972.0,0.05]
[1646680860408,0.09998,37980.0,37969.0,0.131797]
[1646680860605,0.09998,37980.0,37959.0,0.15]
[1646680860606,0.7476,37972.0,37959.0,0.03301605]
[1646680860805,0.065913,37969.0,37959.0,0.24893605]
[1646680861000,0.065913,37969.0,37962.0,0.15]
[1646680861001,0.3527,37968.0,37962.0,0.15]
[1646680861201,0.09998,37966.0,37962.0,0.15]
[1646680861460,0.1,37964.0,37959.0,0.03301605]
[1646680861651,0.09998,37966.0,37965.0,0.30489271]
[1646680861852,0.181826,37966.0,37965.0,0.30489271]
[1646680862053,1.35,37965.0,37958.0,0.4181]
[1646680862260,0.01326786,37963.0,37958.0,0.4181]
[1646680862459,0.09998,37959.0,37950.0,0.1]
[1646680862654,0.09998,37959.0,37950.0,0.095]
[1646680862655,0.3527,37958.0,37950.0,0.095]
[1646680862851,0.09998,37952.0,37950.0,0.095]
[1646680863052,0.318638,37951.0,37944.0,0.15]
[1646680863251,0.368638,37951.0,37943.0,0.35016386]
[1646680863452,0.368638,37951.0,37947.0,0.00046446]
[1646680863453,0.1,37949.0,37947.0,0.00046446]
[1646680863654,0.0527,37948.0,37947.0,0.00046446]
[1646680863850,0.0527,37948.0,37947.0,0.15046446]
[1646680864254,0.0527,37948.0,37947.0,0.15]
[1646680864452,0.0527,37948.0,37946.0,0.00011612]
[1646680864653,0.0567,37948.0,37946.0,0.00011612]
[1646680865053,0.188589,37948.0,37946.0,0.20001612]
[1646680865305,1.5454959,37947.0,37941.0,0.01]
[1646680865507,0.0527,37946.0,37941.0,0.01]
[1646680865705,0.1527,37946.0,37941.0,0.01]
[1646680865906,1.35,37944.0,37939.0,0.00046455]
[1646680866108,0.29998,37942.0,37939.0,0.00046455]
[1646680866310,0.29998,37942.0,37925.0,0.15]
[1646680866311,1.64658,37939.0,37925.0,0.14046455]
[1646680866608,0.6585,37937.0,37922.0,0.131948]
[1646680866811,0.6585,37937.0,37911.0,0.01]
[1646680866812,0.1853227,37925.0,37911.0,0.01]
[1646680867011,0.09998,37923.0,37911.0,0.01]
[1646680867205,0.3527,37922.0,37911.0,0.01]
[1646680867411,0.066007,37915.0,37911.0,0.01]
[1646680867605,0.00741,37914.0,37913.0,0.14046455]
[1646680867810,0.1,37920.0,37913.0,0.14046455]
[1646680867811,0.22209413,37923.0,37917.0,0.432511]
[1646680868007,0.22209413,37923.0,37920.0,0.14046455]
[1646680868008,0.0527,37922.0,37920.0,0.14046455]
[1646680868207,0.0527,37922.0,37921.0,0.15920667]
[1646680868406,0.0527,37922.0,37921.0,0.60784344]
[1646680868609,0.0527,37922.0,37921.0,0.38238389]
[1646680868610,0.0567,37922.0,37921.0,0.38238389]
[1646680869970,0.1,37934.0,37928.0,1.15]
[1646680870163,0.1,37934.0,37931.0,0.14046455]
[1646680870363,0.1,37934.0,37927.0,0.05]
[1646680870364,0.0527,37934.0,37927.0,0.05]
[1646680870566,0.1,37932.0,37927.0,0.05]
[1646680870764,0.1,37932.0,37926.0,0.00010137]
[1646680870765,0.1,37928.0,37926.0,0.00010137]
[1646680870965,0.0527,37927.0,37926.0,0.00010137]
[1646680871165,0.2527,37927.0,37926.0,0.00010137]
[1646680871568,0.4027,37927.0,37915.0,0.197921]
[1646680871766,0.5954044,37927.0,37925.0,9.82e-05]
[1646680871970,0.5954044,37927.0,37914.0,0.2978074]
[1646680871971,0.27495672,37916.0,37897.0,0.9974]
[1646680872167,0.27495672,37916.0,37889.0,0.54946455]
[1646680872168,0.05002,37906.0,37889.0,0.54946455]
[1646680872366,0.20741021,37903.0,37888.0,0.066015]
[1646680872569,0.20741021,37903.0,37886.0,0.14046455]
[1646680872570,1.0112,37902.0,37886.0,0.14046455]
[1646680872818,0.6585,37895.0,37886.0,0.14046455]
[1646680873017,0.054169,37893.0,37892.0,0.14046455]
[1646680873217,0.08475423,37893.0,37892.0,0.14046455]
[1646680873414,0.1527,37893.0,37892.0,0.14046455]
[1646680873614,0.1527,37893.0,37892.0,0.31985243]
[1646680873816,0.0527,37893.0,37892.0,0.31985243]
[1646680874216,0.0527,37893.0,37892.0,0.34871878]
[1646680874416,0.132031,37905.0,37892.0,0.34871878]
[1646680874619,0.0527,37904.0,37901.0,0.20115733]
[1646680875017,0.0527,37904.0,37901.0,0.2361473]
[1646680875221,0.0527,37904.0,37901.0,0.2861473]
[1646680875618,0.0527,37904.0,37902.0,0.14046455]
[1646680875619,0.066012,37903.0,37902.0,0.14046455]
[1646680875819,0.118712,37903.0,37902.0,0.34026455]
[1646680876319,0.116012,37903.0,37902.0,0.34026455]
[1646680876570,0.416012,37903.0,37897.0,0.14046455]
[1646680876772,0.416012,37903.0,37872.0,0.748724]
[1646680876773,0.06603261,37898.0,37887.0,0.19046455]
[1646680877071,0.06603261,37898.0,37888.0,0.0284216]
[1646680877072,0.414641,37897.0,37888.0,0.0284216]
[1646680877271,0.1,37890.0,37887.0,0.14046455]
[1646680877471,0.0486,37889.0,37882.0,0.0327363]
[1646680877678,0.22387525,37882.0,37858.0,0.264163]
[1646680877880,0.22387525,37882.0,37845.0,0.2045841]
[1646680877881,0.15,37862.0,37845.0,0.2045841]
[1646680878074,0.15,37862.0,37838.0,0.00729554]
[1646680878075,0.1472,37855.0,37838.0,0.00729554]
[1646680878274,0.1,37846.0,37838.0,0.0028]
[1646680878472,0.1,37846.0,37844.0,0.0028]
[1646680878473,0.0486,37845.0,37844.0,0.0028]
[1646680878676,0.125,37855.0,37847.0,1.65]
[1646680878876,0.066096,37858.0,37854.0,0.0028]
[1646680879076,0.0486,37860.0,37857.0,0.408892]
[1646680879275,0.198328,37862.0,37856.0,0.15]
[1646680879276,0.0486,37861.0,37859.0,0.0028]
[1646680879579,0.0486,37865.0,37859.0,0.03324859]
[1646680879776,0.0486,37865.0,37859.0,0.03044859]
[1646680879976,0.0486,37865.0,37854.0,0.15]
[1646680879983,0.1,37863.0,37854.0,0.15]
[1646680880209,0.0486,37863.0,37862.0,0.0028]